fUSD/lending_fUSD_20250106
["ID","MTS","AMOUNT","RATE_DAILY","PERIOD"]
[347827670,1736139032612,-182.88,0.000111,2]
[347827671,1736139032621,-150.0,0.000111,2]
[347827672,1736139032631,-436.97,0.000111,2]
[347827673,1736139032641,-150.0,0.000111,2]
[347827674,1736139032651,-182.88,0.000111,2]
[347827675,1736139032660,-182.88,0.000111,2]
[347827676,1736139032672,-150.0,0.000111,2]
[347827677,1736139032682,-436.97,0.000111,2]
[347827678,1736139032691,-436.97,0.000111,2]
[347827679,1736139032701,-150.0,0.000111,2]
[347827680,1736139032710,-182.88,0.000111,2]
[347827681,1736139032721,-182.88,0.000111,2]
[347827682,1736139032730,-150.0,0.000111,2]
[347827683,1736139032739,-436.97,0.000111,2]
[347827684,1736139032749,-435.63,0.000111,2]
[347827685,1736139032758,-182.88,0.000111,2]
[347827686,1736139032768,-150.0,0.000111,2]
[347827687,1736139032777,-150.0,0.000111,2]
[347827688,1736139032786,-182.88,0.000111,2]
[347827689,1736139032796,-150.0,0.00011108,2]
[347827690,1736139032806,-150.0,0.00011178,2]
[347827691,1736139032815,-339.093,0.0001121,2]
[347827692,1736139032825,-150.0,0.00011263,2]
[347827693,1736139032834,-500.0,0.00011264,2]
[347827694,1736139032845,-150.0,0.00011276,2]
[347827695,1736139032854,-241.26,0.00011315,2]
[347827696,1736139032863,-150.0,0.00011315,2]
[347827697,1736139032872,-150.0,0.00011315,2]
[347827698,1736139032881,-1497.72,0.00011433,2]
[347827699,1736139032890,-150.0,0.00011444,2]
[347827700,1736139032901,-9540.165,0.00011497,2]
[347827701,1736139032910,-557.492,0.00011497,2]
[347827702,1736139032919,-500.0,0.00011498,2]
[347827703,1736139032928,-500.58149598,0.00011498,2]
[347827704,1736139032938,-500.0,0.00011498,2]
[347827705,1736139032947,-500.0,0.00011498,2]
[347827706,1736139032956,-500.0,0.00011498,2]
[347827707,1736139032965,-500.0,0.00011498,2]
[347827708,1736139032974,-500.0,0.00011498,2]
[347827709,1736139032983,-803.5,0.00011498,2]
[347827710,1736139032993,-500.0,0.00011498,2]
[347827711,1736139033002,-500.0,0.00011498,2]
[347827712,1736139033012,-500.0,0.00011498,2]
[347827713,1736139033021,-500.0,0.00011498,2]
[347827714,1736139033032,-1744.89,0.00011498,2]
[347827715,1736139033041,-500.0,0.00011498,2]
[347827716,1736139033051,-500.0,0.00011498,2]
[347827717,1736139033060,-500.0,0.00011498,2]
[347827718,1736139033070,-500.0,0.00011498,2]
[347827719,1736139033079,-500.0,0.00011498,2]
[347827720,1736139033089,-500.0,0.00011498,2]
[347827721,1736139033098,-500.0,0.00011498,2]
[347827722,1736139033107,-500.0,0.00011498,2]
[347827723,1736139033117,-243.98898622,0.00011498,2]
[347827724,1736139033126,-870.56,0.00011498,2]
[347827725,1736139033136,-500.0,0.00011498,2]
[347827726,1736139033146,-500.0,0.00011498,2]
[347827727,1736139033156,-304.02557282,0.00011498,2]
[347827728,1736139033165,-3031.09826556,0.00011498,2]
[347827729,1736139038056,-580.44173444,0.00011498,2]
[347827730,1736139038066,-500.0,0.00011498,2]
[347827731,1736139038078,-240.796911,0.00011498,2]
[347827732,1736139038164,-259.203089,0.00011498,2]
[347827733,1736139038174,-500.0,0.00011498,2]
[347827734,1736139038184,-500.0,0.00011498,2]
[347827735,1736139038194,-500.0,0.00011498,2]
[347827736,1736139038203,-2643.34,0.00011498,2]
[347827737,1736139038213,-500.0,0.00011498,2]
[347827738,1736139038223,-500.0,0.00011498,2]
[347827739,1736139038232,-500.0,0.00011498,2]
[347827740,1736139038242,-500.0,0.00011498,2]
[347827741,1736139038251,-500.0,0.00011498,2]
[347827742,1736139038261,-500.0,0.00011498,2]
[347827743,1736139038270,-500.0,0.00011498,2]
[347827744,1736139038280,-500.0,0.00011498,2]
[347827745,1736139038289,-500.0,0.00011498,2]
[347827746,1736139038299,-500.0,0.00011498,2]
[347827747,1736139038309,-500.0,0.00011498,2]
[347827748,1736139038318,-1357.92,0.00011498,2]
[347827749,1736139038329,-500.0,0.00011498,2]
[347827750,1736139038338,-500.0,0.00011498,2]
[347827751,1736139038347,-500.0,0.00011498,2]
[347827752,1736139038357,-1104.24,0.00011498,2]
[347827753,1736139038367,-500.0,0.00011498,2]
[347827754,1736139038376,-500.0,0.00011498,2]
[347827755,1736139038386,-500.0,0.00011498,2]
[347827756,1736139038395,-500.0,0.00011498,2]
[347827757,1736139038405,-500.0,0.00011498,2]
[347827758,1736139038415,-500.0,0.00011498,2]
[347827759,1736139038425,-2379.29,0.00011498,2]
[347827760,1736139038435,-500.0,0.00011498,2]
[347827762,1736139038445,-500.0,0.00011498,2]
[347827764,1736139038454,-500.0,0.00011498,2]
[347827766,1736139038463,-500.0,0.00011498,2]
[347827768,1736139038473,-473.55040771,0.00011498,2]
[347827769,1736139038483,-500.0,0.00011498,2]
[347827770,1736139038493,-442.34714978,0.00011498,2]
[347827771,1736139038505,-1484.14285022,0.00011498,2]
[347827773,1736139038515,-500.0,0.00011498,2]
[347827775,1736139038525,-517.6,0.00011498,2]
[347827776,1736139038534,-790.71,0.00011498,2]
[347827778,1736139038544,-2401.42,0.00011498,2]
[347827780,1736139038553,-645.53,0.00011498,2]
[347827782,1736139038562,-1226.47,0.00011498,2]
[347827784,1736139038571,-725.66,0.00011498,2]
[347827787,1736139038582,-774.81,0.00011498,2]
[347827789,1736139038591,-1486.23,0.00011498,2]
[347827790,1736139038601,-1497.48,0.00011498,2]
[347827792,1736139038610,-1514.71,0.00011498,2]
[347827794,1736139038620,-1492.87,0.00011498,2]
[347827796,1736139038629,-1510.73,0.00011498,2]
[347827799,1736139038639,-1507.81,0.00011498,2]
[347827800,1736139038648,-1480.41,0.00011499,2]
[347827803,1736139038658,-302.41714979,0.00011499,2]
[347827805,1736139038670,-167.91569972,0.00011499,2]
[347827807,1736139038682,-500.0,0.00011499,2]
[347827809,1736139038691,-537.35,0.00011499,2]
[347827811,1736139038701,-1562.52,0.00011499,2]
[347827813,1736139038710,-1012.17675932,0.00011499,2]
[347827815,1736139038722,-60.36324068,0.00011499,2]
[347827817,1736139038732,-500.0,0.00011499,2]
[347827819,1736139038741,-282.31655761,0.00011499,2]
[347827821,1736139038753,-217.68344239,0.00011499,2]
[347827823,1736139038762,-500.0,0.00011499,2]
[347827825,1736139038772,-500.0,0.00011499,2]
[347827827,1736139038781,-500.0,0.00011499,2]
[347827829,1736139038790,-500.0,0.00011499,2]
[347827831,1736139038800,-500.0,0.00011499,2]
[347827833,1736139038809,-500.0,0.00011499,2]
[347827835,1736139038818,-417.53124194,0.00011499,2]
[347827838,1736139038843,-372.77875806,0.00011499,2]
[347827839,1736139038853,-521.19,0.00011499,2]
[347827840,1736139038863,-1670.14,0.00011499,2]
[347827841,1736139038872,-4495.38,0.00011499,2]
[347827842,1736139038882,-1011.0,0.000115,2]
[347827843,1736139038891,-214.7848527,0.00011563,2]
[347827844,1736139038900,-182.88,0.000116,2]
[347827845,1736139038910,-182.88,0.000116,2]
[347827846,1736139038919,-182.88,0.000116,2]
[347827847,1736139038929,-180.99,0.000116,2]
[347827848,1736139038939,-150.0,0.00011613,2]
[347827849,1736139038948,-1854.4782,0.00011672,2]
[347827850,1736139038958,-1076.96916455,0.000117,2]
[347827851,1736139038969,-1743.07043902,0.000117,2]
[347827852,1736139038979,-209.54743412,0.000117,2]
[347827853,1736139038988,-2820.03960348,0.00011756,2]
[347827854,1736139038999,-398.93783718,0.00011772,2]
[347827855,1736139040247,-946.36,0.00011772,2]
[347827856,1736139040259,-654.70216282,0.00011772,2]
[347827857,1736139040269,-200.0,0.00011772,2]
[347827858,1736139040278,-500.0,0.00011772,2]
[347827859,1736139040288,-500.0,0.00011772,2]
[347827860,1736139040298,-500.0,0.00011772,2]
[347827861,1736139040307,-500.0,0.00011772,2]
[347827862,1736139040316,-443.27783718,0.00011772,2]
[347827863,1736139040518,-56.72216282,0.00011772,2]
[347827864,1736139040528,-500.0,0.00011772,2]
[347827865,1736139040538,-322.83531187,0.00011772,2]
[347828094,1736139043198,-480.66468813,0.00011772,2]
[347828096,1736139043207,-235.06336827,0.00011772,2]
[347828098,1736139043217,-500.0,0.00011772,2]
[347828100,1736139043227,-500.0,0.00011772,2]
[347828101,1736139043236,-2000.0,0.00011772,2]
[347828102,1736139043245,-500.0,0.00011772,2]
[347828103,1736139043255,-200.0,0.00011772,2]
[347828104,1736139043264,-1744.89,0.00011772,2]
[347828105,1736139043274,-500.0,0.00011772,2]
[347828106,1736139043283,-500.0,0.00011772,2]
[347828107,1736139043292,-500.0,0.00011772,2]
[347828108,1736139043302,-500.0,0.00011772,2]
[347828109,1736139043311,-500.0,0.00011772,2]
[347828110,1736139043321,-870.56,0.00011772,2]
[347828111,1736139043330,-500.0,0.00011772,2]
[347828112,1736139043341,-500.0,0.00011772,2]
[347828113,1736139043350,-3611.54,0.00011772,2]
[347828114,1736139043359,-500.0,0.00011772,2]
[347828115,1736139043368,-500.0,0.00011772,2]
[347828116,1736139043377,-500.0,0.00011772,2]
[347828117,1736139043387,-500.0,0.00011772,2]
[347828118,1736139043397,-500.0,0.00011772,2]
[347828119,1736139043406,-2643.34,0.00011772,2]
[347828120,1736139043415,-500.0,0.00011772,2]
[347828121,1736139043424,-500.0,0.00011772,2]
[347828122,1736139043433,-500.0,0.00011772,2]
[347828123,1736139043443,-500.0,0.00011772,2]
[347828124,1736139043453,-500.0,0.00011772,2]
[347828125,1736139043463,-500.0,0.00011772,2]
[347828126,1736139043472,-500.0,0.00011772,2]
[347828127,1736139043482,-500.0,0.00011772,2]
[347828128,1736139043491,-500.0,0.00011772,2]
[347828129,1736139043500,-500.0,0.00011772,2]
[347828130,1736139043510,-1357.92,0.00011772,2]
[347828131,1736139043519,-500.0,0.00011772,2]
[347828132,1736139043529,-500.0,0.00011772,2]
[347828133,1736139043539,-500.0,0.00011772,2]
[347828134,1736139043549,-1104.24,0.00011772,2]
[347828135,1736139043558,-500.0,0.00011772,2]
[347828136,1736139043567,-279.34316345,0.00011772,2]
[347828137,1736139043576,-500.0,0.00011772,2]
[347828138,1736139043587,-500.0,0.00011772,2]
[347828139,1736139043597,-536.8986322,0.00011772,2]
[347828140,1736139043608,-500.0,0.00011772,2]
[347828141,1736139043618,-2379.29,0.00011772,2]
[347828142,1736139043627,-500.0,0.00011772,2]
[347828143,1736139043637,-500.0,0.00011772,2]
[347828144,1736139043646,-623.30198513,0.00011772,2]
[347828145,1736139043655,-233.276015,0.00011772,2]
[347828146,1736139043664,-500.0,0.00011772,2]
[347828147,1736139043676,-201.361566,0.00011772,2]
[347828148,1736139043687,-200.0,0.00011772,2]
[347828149,1736139043696,-500.0,0.00011772,2]
[347828150,1736139043706,-3000.0,0.00011772,2]
[347828151,1736139043717,-1300.91,0.00011772,2]
[347828152,1736139043726,-500.0,0.00011772,2]
[347828153,1736139043736,-1926.49,0.00011772,2]
[347828154,1736139043746,-500.0,0.00011772,2]
[347828155,1736139043756,-500.0,0.00011772,2]
[347828156,1736139043766,-1746.92,0.00011772,2]
[347828157,1736139043776,-500.0,0.00011772,2]
[347828158,1736139043786,-663.68,0.00011772,2]
[347828159,1736139043795,-500.0,0.00011772,2]
[347828160,1736139043804,-804.27,0.00011772,2]
[347828161,1736139043814,-500.0,0.00011772,2]
[347828162,1736139043823,-1455.89,0.00011772,2]
[347828163,1736139043832,-1420.28,0.00011772,2]
[347828164,1736139043842,-517.6,0.00011772,2]
[347828165,1736139043851,-790.71,0.00011772,2]
[347828166,1736139043861,-500.0,0.00011772,2]
[347828167,1736139043871,-500.0,0.00011772,2]
[347828168,1736139043881,-500.0,0.00011772,2]
[347828169,1736139043890,-1669.61,0.00011772,2]
[347828170,1736139043899,-500.0,0.00011772,2]
[347828171,1736139043909,-500.0,0.00011772,2]
[347828172,1736139043919,-500.0,0.00011772,2]
[347828173,1736139043928,-500.0,0.00011772,2]
[347828174,1736139043938,-500.0,0.00011772,2]
[347828175,1736139043947,-622.9,0.00011772,2]
[347828176,1736139043956,-2379.71120203,0.00011772,2]
[347828177,1736139043969,-21.70879797,0.00011772,2]
[347828178,1736139043978,-628.29120203,0.00011772,2]
[347828179,1736139043990,-17.23879797,0.00011772,2]
[347828180,1736139044001,-500.0,0.00011772,2]
[347828181,1736139044010,-500.0,0.00011772,2]
[347828182,1736139044019,-125.02675293,0.00011772,2]
[347828183,1736139044031,-374.97324707,0.00011772,2]
[347828184,1736139044041,-1226.47,0.00011772,2]
[347828185,1736139044051,-200.0,0.00011772,2]
[347828186,1736139044060,-691.65675293,0.00011772,2]
[347828187,1736139044083,-218.37324707,0.00011772,2]
[347828188,1736139044092,-552.32288891,0.00011772,2]
[347828189,1736139044104,-610.98651663,0.00011772,2]
[347828190,1736139044120,-491.21493622,0.00011772,2]
[347828193,1736139046064,-1471.34,0.00011498,2]
[347828194,1736139046074,-277.93565824,0.00011772,2]
[347828195,1736139046083,-725.66,0.00011772,2]
[347828196,1736139046092,-496.27543828,0.00011772,2]
[347828197,1736139046246,-3.72456172,0.00011772,2]
[347828198,1736139046256,-774.81,0.00011772,2]
[347828199,1736139046266,-500.0,0.00011773,2]
[347828200,1736139046275,-103.96543828,0.00011773,2]
[347828201,1736139046358,-396.03456172,0.00011773,2]
[347828202,1736139046368,-103.96543828,0.00011773,2]
[347828203,1736139046442,-433.38456172,0.00011773,2]
[347828204,1736139046452,-1562.52,0.00011773,2]
[347828205,1736139046462,-1072.54,0.00011773,2]
[347828207,1736139046471,-500.0,0.00011773,2]
[347828209,1736139046480,-500.0,0.00011773,2]
[347828211,1736139046490,-40.61431427,0.00011773,2]
[347828318,1736140161410,-355.16,8.652e-05,2]
[347828319,1736140161433,-150.0,9.123e-05,2]
[347828320,1736140161454,-705.00687596,0.00010037,2]
[347828321,1736140161476,-3035.85827256,0.00010037,2]
[347828322,1736140161498,-150.0,0.00010135,2]
[347828323,1736140161522,-737.6,0.00010136,2]
[347828324,1736140161545,-500.0,0.00010136,2]
[347828325,1736140161567,-737.13,0.00010136,2]
[347828326,1736140161590,-500.0,0.00010136,2]
[347828327,1736140161616,-580.53,0.00010136,2]
[347828328,1736140161640,-2452.88,0.00010136,2]
[347828329,1736140161663,-500.0,0.00010136,2]
[347828330,1736140161687,-844.31,0.00010136,2]
[347828331,1736140161709,-1495.35,0.00010136,2]
[347828332,1736140161732,-500.0,0.00010136,2]
[347828333,1736140161755,-500.0,0.00010136,2]
[347828334,1736140161778,-500.0,0.00010136,2]
[347828335,1736140161800,-861.27,0.00010136,2]
[347828336,1736140161823,-958.91,0.00010136,2]
[347828337,1736140161847,-500.0,0.00010136,2]
[347828338,1736140161872,-500.0,0.00010136,2]
[347828339,1736140161896,-3982935.99485148,0.00010137,2]
[347828342,1736140217919,-358.5515724,0.00010037,2]
[347828343,1736140217943,-405.54569945,0.00010037,2]
[347828344,1736140217968,-952.73,0.00010136,2]
[347828345,1736140217991,-500.0,0.00010136,2]
[347828346,1736140218015,-500.0,0.00010136,2]
[347828347,1736140218041,-500.0,0.00010136,2]
[347828348,1736140218066,-500.0,0.00010136,2]
[347828349,1736140218090,-996283.17272815,0.00010137,2]
[347828353,1736140232388,-530.70366831,0.00010136,2]
[347828354,1736140232646,-175.71633169,0.00010136,2]
[347828355,1736140232655,-1826.12,0.00010136,2]
[347828356,1736140232666,-500.0,0.00010136,2]
[347828357,1736140232675,-13150.38205697,0.00010137,2]
[347828358,1736140232752,-2416.17214854,0.00010137,2]
[347828359,1736140232769,-2175.53825998,0.00010137,2]
[347828360,1736140232780,-1861.19286154,0.00010137,2]
[347828361,1736140232815,-561.62896266,0.00010137,2]
[347828362,1736140232858,-574.23912778,0.00010137,2]
[347828363,1736140232869,-4950.42730442,0.00010137,2]
[347828365,1736140238300,-556.35,0.00010136,2]
[347828366,1736140238310,-277.34583873,0.00010136,2]
[347828367,1736140238322,-422.54416127,0.00010136,2]
[347828368,1736140238332,-347.42027026,0.00010136,2]
[347828369,1736140238343,-152.57972974,0.00010136,2]
[347828370,1736140238353,-261.46035313,0.00010137,2]
[347828371,1736140238364,-1853.29048464,0.00010137,2]
[347828372,1736140238375,-358.16823312,0.00010137,2]
[347828373,1736140238388,-1356.02894254,0.00010137,2]
[347828374,1736140238400,-3031.84344195,0.00010137,2]
[347828375,1736140238411,-387.53,0.00010137,2]
[347828376,1736140238423,-10484.38857556,0.00010137,2]
[347828377,1736140238435,-1259.50785182,0.00010137,2]
[347828378,1736140238447,-4843.48066388,0.00010137,2]
[347828379,1736140238473,-355.72,0.00010137,2]
[347828380,1736140238484,-1027.90064709,0.00010137,2]
[347828381,1736140238496,-1144.11906054,0.00010137,2]
[347828382,1736140238507,-3677.0,0.00010137,2]
[347828383,1736140238584,-1471.09,0.00010137,2]
[347828384,1736140238595,-2487.3617592,0.00010137,2]
[347828387,1736140240408,-202081.2774083,0.00010137,2]
[347828388,1736140240465,-313.42503384,0.00010137,2]
[347828389,1736140240628,-792.7779237,0.00010137,2]
[347828390,1736140240640,-1920.24115953,0.00010137,2]
[347828391,1736140240685,-2766.45000002,0.00010137,2]
[347828392,1736140240696,-641.33156176,0.00010137,2]
[347828400,1736140246417,-500.0,0.00010136,2]
[347828401,1736140246427,-638.28203649,0.00010136,2]
[347828402,1736140246478,-1199.4,0.00010136,2]
[347828403,1736140246533,-512.98796351,0.00010136,2]
[347828404,1736140246543,-4098.37556621,0.00010137,2]
[347828405,1736140246590,-7976.01552537,0.00010137,2]
[347828406,1736140246648,-925.5972962,0.00010137,2]
[347828407,1736140246688,-1461.58480101,0.00010137,2]
[347828408,1736140248866,-500.0,0.00010136,2]
[347828409,1736140248876,-2221.28325512,0.00010137,2]
[347828415,1736140248932,-699.5899999,0.00010137,2]
[347828418,1736140248945,-424.49932413,0.00010137,2]
[347828422,1736140248986,-220619.57038687,0.00010137,2]
[347828435,1736140249100,-27086.72937982,0.00010137,2]
[347828437,1736140249111,-500.57827625,0.00010137,2]
[347828464,1736140249359,-3953.81927455,0.00010137,2]
[347828512,1736140914844,3760.8,0.00012356,30]
[347828539,1736141432146,-479.35,8.219e-05,2]
[347828540,1736141432156,-1000.0,8.533e-05,2]
[347828541,1736141432166,-250.0,8.544e-05,2]
[347828542,1736141432175,-250.0,8.565e-05,2]
[347828543,1736141432185,-200.0,8.668e-05,2]
[347828544,1736141432195,-300.0,8.877e-05,2]
[347828546,1736141432204,-1303.9467317,8.878e-05,2]
[347828548,1736141432214,-26166.38680998,8.878e-05,2]
[347828551,1736141432227,-1000.7,8.878e-05,2]
[347828553,1736141432239,-4191.56302617,8.878e-05,2]
[347828556,1736141432262,-366.03,8.878e-05,2]
[347828558,1736141432274,-788.5,8.878e-05,2]
[347828561,1736141432285,-503.1,8.878e-05,2]
[347828564,1736141432314,-1149.82733183,8.878e-05,2]
[347828566,1736141432324,-224.34,8.879e-05,2]
[347828568,1736141432333,-250.0,8.879e-05,2]
[347828570,1736141432343,-1303.94673169,8.879e-05,2]
[347828571,1736141432352,-2445.60530477,8.916e-05,2]
[347828572,1736141432364,-417.98026338,8.916e-05,2]
[347828576,1736141432463,-992.84,8.916e-05,2]
[347828577,1736141432484,-300.0,8.916e-05,2]
[347828578,1736141432495,-285.19443185,8.916e-05,2]
[347828579,1736141432505,-300.0,8.948e-05,2]
[347828580,1736141432515,-1852.42,8.997e-05,2]
[347828581,1736141432525,-820.66,8.997e-05,2]
[347828582,1736141432535,-1400.0,9.1e-05,3]
[347828583,1736141432544,-150.0,9.122e-05,2]
[347828584,1736141432554,-150.0,9.123e-05,2]
[347828585,1736141432563,-150.0,9.123e-05,2]
[347828586,1736141432573,-150.0,9.123e-05,2]
[347828587,1736141432583,-186.98192031,9.123e-05,2]
[347828588,1736141432592,-150.0,9.123e-05,2]
[347828589,1736141432602,-150.00000001,9.123e-05,2]
[347828590,1736141432611,-150.0,9.142e-05,2]
[347828591,1736141432622,-150.0,9.161e-05,2]
[347828592,1736141432632,-150.0,9.174e-05,2]
[347828593,1736141432645,-150.0,9.18e-05,2]
[347828594,1736141432655,-696.66,9.188e-05,2]
[347828595,1736141432664,-150.0,9.191e-05,2]
[347828596,1736141432674,-150.0,9.198e-05,2]
[347828597,1736141432683,-2800.0,9.2e-05,3]
[347828598,1736141432692,-150.0,9.217e-05,2]
[347828599,1736141432702,-150.0,9.225e-05,2]
[347828600,1736141432711,-809.63,9.229e-05,2]
[347828601,1736141432720,-150.0,9.236e-05,2]
[347828602,1736141432731,-150.0,9.255e-05,2]
[347828603,1736141432740,-150.0,9.258e-05,2]
[347828604,1736141432749,-150.0,9.273e-05,2]
[347828605,1736141432759,-150.0,9.275e-05,2]
[347828606,1736141432768,-150.0,9.292e-05,2]
[347828607,1736141432778,-4200.0,9.3e-05,3]
[347828608,1736141432787,-150.0,9.311e-05,2]
[347828609,1736141432796,-150.0,9.326e-05,2]
[347828610,1736141432805,-150.0,9.326e-05,2]
[347828611,1736141432814,-150.0,9.33e-05,2]
[347828612,1736141432823,-150.0,9.349e-05,2]
[347828613,1736141432832,-150.0,9.367e-05,2]
[347828614,1736141432841,-150.0,9.377e-05,2]
[347828615,1736141432849,-150.0,9.386e-05,2]
[347828616,1736141432858,-150.0,9.394e-05,2]
[347828617,1736141432868,-5600.0,9.4e-05,3]
[347828618,1736141432877,-150.0,9.405e-05,2]
[347828619,1736141432892,-150.0,9.424e-05,2]
[347828620,1736141432901,-150.0,9.427e-05,2]
[347828621,1736141432915,-150.0,9.442e-05,2]
[347828622,1736141432927,-150.0,9.461e-05,2]
[347828623,1736141432939,-150.0,9.461e-05,2]
[347828624,1736141432949,-150.0,9.478e-05,2]
[347828625,1736141432958,-150.0,9.48e-05,2]
[347828626,1736141432967,-150.0,9.499e-05,2]
[347828627,1736141432982,-7000.0,9.5e-05,3]
[347828628,1736141432992,-150.0,9.518e-05,2]
[347828629,1736141433001,-150.0,9.529e-05,2]
[347828630,1736141433011,-150.0,9.529e-05,2]
[347828631,1736141433021,-200.0,9.535e-05,2]
[347828632,1736141433030,-150.0,9.536e-05,2]
[347828633,1736141433040,-150.0,9.555e-05,2]
[347828634,1736141433050,-150.0,9.574e-05,2]
[347828635,1736141433060,-150.0,9.579e-05,2]
[347828636,1736141433071,-150.0,9.593e-05,2]
[347828637,1736141433083,-150.0,9.596e-05,2]
[347828638,1736141433094,-1000.0,9.599e-05,2]
[347828639,1736141433104,-1400.0,9.6e-05,3]
[347828640,1736141433113,-150.0,9.611e-05,2]
[347828641,1736141433123,-150.0,9.63e-05,2]
[347828642,1736141433133,-150.0,9.63e-05,2]
[347828643,1736141433143,-150.0,9.649e-05,2]
[347828644,1736141433154,-150.0,9.664e-05,2]
[347828645,1736141433163,-150.0,9.668e-05,2]
[347828646,1736141433173,-150.0,9.681e-05,2]
[347828647,1736141433182,-150.0,9.686e-05,2]
[347828648,1736141433192,-1400.0,9.7e-05,3]
[347828649,1736141433203,-150.0,9.705e-05,2]
[347828650,1736141433213,-150.0,9.724e-05,2]
[347828651,1736141433223,-150.0,9.732e-05,2]
[347828652,1736141433233,-150.0,9.732e-05,2]
[347828653,1736141433244,-150.0,9.743e-05,2]
[347828654,1736141433254,-150.0,9.762e-05,2]
[347828655,1736141433264,-420.0,9.765e-05,2]
[347828656,1736141433274,-150.0,9.78e-05,2]
[347828657,1736141433283,-150.0,9.782e-05,2]
[347828658,1736141433292,-150.0,9.799e-05,2]
[347828659,1736141433302,-150.0,9.799e-05,2]
[347828660,1736141433312,-2085.76993624,9.8e-05,2]
[347828661,1736141433322,-1400.0,9.8e-05,3]
[347828662,1736141433332,-150.0,9.818e-05,2]
[347828663,1736141433342,-150.0,9.833e-05,2]
[347828664,1736141433351,-150.0,9.837e-05,2]
[347828665,1736141433361,-150.0,9.855e-05,2]
[347828666,1736141433372,-150.0,9.867e-05,2]
[347828667,1736141433382,-150.0,9.874e-05,2]
[347828668,1736141433393,-150.0,9.884e-05,2]
[347828669,1736141433403,-150.0,9.893e-05,2]
[347828670,1736141433413,-1400.0,9.9e-05,3]
[347828671,1736141433423,-150.0,9.912e-05,2]
[347828672,1736141433434,-3703.34490149,9.918e-05,4]
[347828673,1736141433448,-476.47053834,9.918e-05,4]
[347828674,1736141433458,-150.0,9.93e-05,2]
[347828675,1736141433467,-150.0,9.934e-05,2]
[347828676,1736141433479,-150.0,9.934e-05,2]
[347828677,1736141433489,-72.63906166,9.949e-05,2]
[347828694,1736141437397,-618.49444355,9.949e-05,2]
[347828696,1736141437414,-808.86649479,9.949e-05,2]
[347828698,1736141437423,-150.0,9.949e-05,2]
[347828700,1736141437433,-150.0,9.968e-05,2]
[347828702,1736141437443,-168.60385471,9.983e-05,2]
[347828705,1736141437461,-173.58061399,9.983e-05,2]
[347828707,1736141437471,-150.0,9.985e-05,2]
[347828708,1736141437481,-150.0,9.987e-05,2]
[347828710,1736141437490,-441.342302,9.999e-05,2]
[347828713,1736141437515,-58.657698,9.999e-05,2]
[347828715,1736141437525,-1907.07,9.999e-05,2]
[347828716,1736141437534,-1799.69925256,9.999e-05,2]
[347828718,1736141437546,-503.73074744,9.999e-05,2]
[347828720,1736141437555,-922.77,9.999e-05,2]
[347828721,1736141437565,-583.21,9.999e-05,2]
[347828722,1736141437574,-587.06529264,9.999e-05,2]
[347828723,1736141437690,-1972.25470736,9.999e-05,2]
[347828724,1736141437702,-500.0,9.999e-05,2]
[347828725,1736141437711,-500.0,9.999e-05,2]
[347828726,1736141437721,-501.20829108,9.999e-05,2]
[347828727,1736141437731,-500.0,9.999e-05,2]
[347828728,1736141437745,-500.0,9.999e-05,2]
[347828729,1736141437755,-498.0,9.999e-05,2]
[347828730,1736141437764,-13.40680156,9.999e-05,2]
[347828731,1736141437783,-486.59319844,9.999e-05,2]
[347828732,1736141437792,-500.0,9.999e-05,2]
[347828733,1736141437802,-500.0,9.999e-05,2]